[Event "European Women-ch 2023"]
[Site "Petrovac"]
[Date "2023.03.18"]
[Round "1.19"]
[White "Gaponenko, Inna"]
[Black "Dylag, Emilia"]
[Result "1/2-1/2"]
[ECO "C85"]
[WhiteElo "2349"]
[BlackElo "2052"]
[Annotator "TA"]
[PlyCount "95"]
[EventDate "2023.03.15"]
[EventType "swiss"]
[EventCountry "MNE"]
[SourceTitle "playchess.com"]
[Source "ChessBase"]
[SourceQuality "1"]
[TimeControl "40/5400+30:1800+30"]

{[%evp 21,95,41,50,48,62,55,59,72,79,60,75,0,0,0,29,0,0,0,0,0,0,0,12,8,19,0,0,0,-10,-9,-8,-14,0,0,0,-14,-8,-6,-18,-43,0,0,8,0,0,0,0,0,0,0,0,0,0,0,0,0,0,-4,-4,-4,0,0,0,0,0,0,0,0,0,0,0,0,0,0,0,0]} 1. e4 {[%emt 0:00:04]} e5 {[%emt 0:00:14]} 2. Nf3 {[%emt 0:00:14]} Nc6 {[%emt 0:00:10]} 3. Bb5 {[%emt 0:00:29]} a6 {[%emt 0:00:14]} 4. Ba4 {[%emt 0:00:12]} Nf6 {[%emt 0:00:52]} 5. O-O {[%emt 0:03:35]} Be7 {[%emt 0:00:33]} 6. Bxc6 {[%emt 0:12:28]} dxc6 {[%emt 0:00:23]} 7. d3 {[%emt 0:00:27]} Bg4 {[%emt 0:12:18]} 8. h3 {[%emt 0:03:56]} Bxf3 {[%emt 0:01:14]} 9. Qxf3 {[%emt 0:00:05]} Qd6 {[%emt 0:07:58]} 10. Nd2 {[%emt 0:07:38]} Qe6 {[%emt 0:02:59]} 11. Nc4 {[%emt 0:13:17]} O-O-O {[%emt 0:13:02]} 12. Bd2 {[%emt 0:25:47] C85: Closed Ruy Lopez: Deferred Exchange Variation.} Nd7 {[%emt 0:16:24]} 13. b4 {[%emt 0:03:08] [#]} b6 $146 {[%emt 0:15:46]} ({Predecessor:} 13... g5 14. Bc3 h5 15. Qf5 Qxf5 16. exf5 f6 17. a4 Nb6 18. Nxb6+ cxb6 19. Rfe1 Rd5 {1-0 Samani,Y (2303)-Gundogan,S (2061) TUR Cup Antalya 2017 (9)}) 14. a4 {[%emt 0:02:08] White is slightly better.} Kb7 {[%emt 0:02:28]} 15. Rfb1 {[%emt 0:11:28] White is more active.} Ra8 {[%emt 0:02:31]} 16. Qg4 {[%emt 0:11:52]} (16. Ne3 $16) 16... Qxg4 $11 {[%emt 0:02:44]} 17. hxg4 {[%emt 0:00:01]} f6 {[%emt 0:04:47]} 18. g3 {[%emt 0:01:38]} h5 {[%emt 0:01:16]} 19. gxh5 {[%emt 0:00:03]} Rxh5 {[%emt 0:00:07]} 20. Kg2 {[%emt 0:00:02]} Rah8 {[%emt 0:02:19]} 21. Ne3 {[%emt 0:01:39]} Rh2+ {[%emt 0:03:55]} 22. Kf3 {[%emt 0:00:01]} g6 {[%emt 0:00:21] Inhibits Nf5.} 23. Bc3 {[%emt 0:01:09]} Nf8 {[%emt 0:04:45]} 24. Ng4 {[%emt 0:00:01]} R2h5 {[%emt 0:00:12]} 25. Bd2 {[%emt 0:00:04]} Ne6 {[%emt 0:00:52]} 26. c3 {[%emt 0:00:01] Dodges Nd4+} Bd6 {[%emt 0:02:26]} 27. Ne3 {[%emt 0:00:55]} (27. Nxf6 $2 {too greedy.} Rf8 28. Ke2 Rxf6 $19) 27... f5 {[%emt 0:02:02]} 28. exf5 {[%emt 0:01:01]} gxf5 {[%emt 0:00:05][%cal Oe5e4]} 29. Nc4 {[%emt 0:00:15]} f4 {[%emt 0:01:00]} 30. gxf4 {[%emt 0:01:05]} (30. Rg1 {simplifies} fxg3 31. Nxd6+ cxd6 32. Rxg3 Rf8+ 33. Ke2) 30... Nxf4 {[%emt 0:00:34]} 31. Bxf4 {[%emt 0:00:31] The position is equal.} Rf5 {[%emt 0:00:43][%mdl 64] [#] Pin} 32. Rh1 {[%emt 0:00:39]} Rxf4+ {[%emt 0:00:32]} 33. Ke2 {[%emt 0:00:23]} Rhf8 {[%emt 0:00:37]} 34. Raf1 {[%emt 0:00:34]} e4 {[%emt 0:00:26]} 35. Nxd6+ {[%emt 0:00:33]} cxd6 {[%emt 0:00:07][%cal Bc7d6,Bd6d5,Bd5d4][%mdl 4128] Endgame KRR-KRR} 36. Rh7+ {[%emt 0:00:04]} Kb8 {[%emt 0:00:13]} 37. dxe4 {[%emt 0:00:18]} Rxe4+ {[%emt 0:00:06]} 38. Kd3 {[%emt 0:00:06]} Ref4 {[%emt 0:00:33]} 39. Rg1 {[%emt 0:01:18]} Rf3+ {[%emt 0:01:20]} 40. Kc4 {[%emt 0:00:00]} d5+ {[%emt 0:00:00]} ({But not} 40... Rxf2 41. Rgg7 b5+ 42. Kb3 $14) 41. Kb3 {[%emt 0:00:14]} d4 {[%emt 0:03:03]} 42. Rgg7 {[%emt 0:05:55]} Rxc3+ {[%emt 0:01:39]} ({Don't take} 42... dxc3 43. Rb7+ Ka8 44. Rxb6 $14) 43. Kb2 {[%emt 0:00:02]} Rxf2+ {[%emt 0:01:13]} 44. Kb1 {[%emt 0:00:09] [#] White wants to mate with Rh8+.} Rf1+ {[%emt 0:08:04]} 45. Kb2 {[%emt 0:00:16]} Rf2+ {[%emt 0:00:32]} 46. Kb1 {[%emt 0:00:05] Intending Rh8+ and mate.} Rf1+ {[%emt 0:00:28]} 47. Kb2 {[%emt 0:00:05] Rh8+ would kill now.} Rf2+ {[%emt 0:00:06]} 48. Kb1 {[%emt 0:00:04] Weighted Error Value: White=0.06 (flawless) /Black=0.05 (flawless)} 1/2-1/2

[Event "European Women-ch 2023"]
[Site "Petrovac"]
[Date "2023.03.18"]
[Round "1.19"]
[White "Sieber, Fiona"]
[Black "Gamal, Alaa"]
[Result "1-0"]
[ECO "C42"]
[WhiteElo "2217"]
[BlackElo "1748"]
[Annotator "TA"]
[PlyCount "95"]
[EventDate "2023.03.15"]
[EventType "swiss"]
[EventCountry "MNE"]
[SourceTitle "playchess.com"]
[Source "ChessBase"]
[SourceQuality "1"]
[TimeControl "40/5400+30:1800+30"]

{[%evp 9,95,19,30,18,13,10,11,-36,-24,-34,-8,-7,-10,-14,-16,-56,-44,-40,-18,-41,-22,-25,-10,-13,0,0,110,-23,-17,-129,-25,-276,-275,-289,-215,-215,-216,-229,-222,-253,-172,-200,0,-208,-170,-168,-128,-120,-118,-125,-96,-95,-90,-156,-152,-213,-117,-136,-135,-135,-138,-133,-143,-144,-139,-166,-18,-26,-26,-26,-26,-26,0,0,90,82,80,72,110,0,345,242,219,216,1000,956,29989,29990]} 1. e4 {[%emt 0:00:01]} e5 {[%emt 0:00:05]} 2. Nf3 {[%emt 0:00:49]} Nf6 {[%emt 0:00:08][%cal Bg8f6,Bf6e4,Be4g3][%mdl 32]} 3. Nxe5 {[%emt 0:01:50]} d6 {[%emt 0:00:21]} 4. Nf3 {[%emt 0:00:05]} Nxe4 {[%emt 0:00:06]} 5. Bd3 {[%emt 0:01:13]} d5 {[%emt 0:00:50]} 6. O-O {[%emt 0:00:12] C42: Petroff Defence: 3 Nxe5 and unusual White 3rd moves.} Be7 {[%emt 0:04:16]} 7. c3 {[%emt 0:02:13]} O-O {[%emt 0:03:48] [#]} 8. Qe2 $146 {[%emt 0:09:15]} (8. Bc2 $11 {deserves consideration.}) ({Predecessor:} 8. Bc2 Bg4 9. d4 Nd7 10. Re1 f5 11. Nbd2 c6 12. Nf1 Bd6 13. Qd3 Qf6 14. h3 {1-0 Bortnyk,O (2604)-Pourkashiyan,A (2322) Titled Tuesday intern op 25th Jan blitz 2022 (2)}) 8... Bf5 {[%emt 0:04:52][%cal Bc8f5,Bf5c2,Bc2a4,Ba4d7][%mdl 32]} 9. Bc2 {[%emt 0:14:55]} Ng3 {[%emt 0:10:16][%mdl 64] Discovered Attack} 10. fxg3 {[%emt 0:02:25]} Bxc2 {[%emt 0:00:22]} 11. d4 {[%emt 0:01:22]} Ba4 {[%emt 0:03:49]} 12. c4 {[%emt 0:02:39]} dxc4 {[%emt 0:13:57]} 13. Nc3 {[%emt 0:00:18]} Bd7 {[%emt 0:05:41]} 14. Bf4 {[%emt 0:14:49][%cal Of4c7]} c6 {[%emt 0:09:53]} 15. d5 {[%emt 0:00:43] Repels Be6} Bc5+ {[%emt 0:03:08]} 16. Kh1 {[%emt 0:00:04]} b5 {[%emt 0:00:58]} 17. Rad1 {[%emt 0:09:28]} Re8 {[%emt 0:00:44] [#]} (17... Qe8 $11) 18. Qc2 {[%emt 0:00:59] White is much more active. The black rooks are badly placed.} ({White must play} 18. Ne5 $1 $16) 18... Qc8 {[%emt 0:01:53] Strongly threatening ...Bf5.} 19. Rfe1 {[%emt 0:22:57]} (19. Ng5 Bf5 20. Qd2 Bd3 $17) (19. dxc6 $1 $11 Bf5 20. Qc1 Qxc6 21. a4) 19... Na6 {[%emt 0:05:22]} (19... Rxe1+ $17 20. Rxe1 cxd5 21. Nxd5 Nc6) 20. Ne5 $2 {[%emt 0:06:23][%mdl 8192]} (20. Ng5 $2 Rxe1+ 21. Rxe1 Bf5 $19) (20. Rxe8+ $11 {and White has nothing to worry.} Bxe8 21. Ng5 (21. dxc6 $2 Nb4 $19)) 20... Nb4 $19 {[%emt 0:06:17]} 21. Qd2 {[%emt 0:00:42]} Nxd5 {[%emt 0:15:03][%mdl 64] Remove Defender} 22. Nxd5 {[%emt 0:00:41]} cxd5 {[%emt 0:00:34]} 23. Qxd5 {[%emt 0:00:10]} Be6 {[%emt 0:00:22]} 24. Qe4 {[%emt 0:00:52]} Qa6 {[%emt 0:03:09]} 25. Nf3 {[%emt 0:01:53]} Qc8 $2 {[%emt 0:01:42]} (25... Qxa2 $2 26. Ng5 g6 27. Qb7 $18) (25... f6 $19 {Hoping for ...Bf7.} 26. h3 Bf7) 26. Be5 $2 {[%emt 0:01:42]} (26. Ne5 $1 $11) 26... Bf5 {[%emt 0:01:05]} 27. Qf4 {[%emt 0:00:46]} Bb4 {[%emt 0:02:05] This pair of bishops is nice.} 28. Bc3 {[%emt 0:01:03]} Rxe1+ {[%emt 0:00:38]} 29. Rxe1 {[%emt 0:00:06]} Bxc3 {[%emt 0:00:11]} 30. bxc3 {[%emt 0:00:03]} Bg6 {[%emt 0:01:30][%cal Ob5b4]} 31. Nd4 {[%emt 0:01:00]} (31. h4 $142) 31... Qd7 $17 {[%emt 0:00:53][%cal Ob5b4]} 32. Qe5 {[%emt 0:01:02] [#]} (32. a3 $17) 32... a6 {[%emt 0:00:21]} ({Black should play} 32... b4 $1 $19 {[%cal Rb4c3]} 33. Qa5 (33. cxb4 $2 c3 $19) 33... Re8 34. Rxe8+ Qxe8) 33. a3 {[%emt 0:01:37]} f6 {[%emt 0:00:08]} 34. Qc5 {[%emt 0:01:01]} Re8 {[%emt 0:00:50]} 35. Rxe8+ {[%emt 0:00:34]} Qxe8 {[%emt 0:00:03][%cal Re8e1][%mdl 4096] Endgame KQB-KQN} 36. h3 {[%emt 0:00:15]} Be4 {[%emt 0:01:43] Against Qd5+} (36... Qe1+ 37. Kh2 $11) 37. Kh2 {[%emt 0:00:35]} Qa8 {[%emt 0:00:30] Repels Qa7} (37... Bb7 $19 {Threatens to win with ...Qe4.} 38. Qa7 Qa8 39. Qxa8+ Bxa8) 38. Qe7 $11 {[%emt 0:00:38] Intending Ne6 and mate.} Bg6 {[%emt 0:00:42]} (38... Bxg2 $2 {is a self mate.} 39. Ne6 Kh8 40. Qxg7#) 39. Qd7 {[%emt 0:00:53]} Bf7 {[%emt 0:00:26]} 40. Nf5 {[%emt 0:00:00]} Qe8 {[%emt 0:00:00]} 41. Qb7 {[%emt 0:04:29][%cal Of5d6]} g6 {[%emt 0:08:25]} (41... Qe6 $11) 42. Nd6 $16 {[%emt 0:03:22]} Qe6 {[%emt 0:02:11]} 43. Qxa6 {[%emt 0:00:59]} Be8 {[%emt 0:05:40]} 44. Qb6 {[%emt 0:01:18]} (44. Qa8 $1 $16 Qxd6 45. Qxe8+ Kg7 46. Qxb5) 44... f5 $2 {[%emt 0:02:38][%mdl 8192]} (44... Kf8 $11) 45. Qd8 {[%emt 0:01:48]} Kf8 {[%emt 0:01:59]} 46. Nxb5 {[%emt 0:00:11]} Kg7 $2 {[%emt 0:01:43]} (46... Qe7 47. Qc8 h5) 47. Nc7 $18 {[%emt 0:00:42][%csl LRe6,LRe8]} Qd7 {[%emt 0:00:20]} 48. Nxe8+ {[%emt 0:00:06] What a bad dream for Black.   Weighted Error Value: White=0.35/Black=0.64} ({Weaker is} 48. Qxe8 Qxc7 49. Qe3 Kf7 $16) 1-0

[Event "European Women-ch 2023"]
[Site "Petrovac"]
[Date "2023.03.18"]
[Round "1.20"]
[White "Walter, Ema"]
[Black "Brunello, Marina"]
[Result "0-1"]
[ECO "B50"]
[WhiteElo "2048"]
[BlackElo "2346"]
[Annotator "TA"]
[PlyCount "56"]
[EventDate "2023.03.15"]
[EventType "swiss"]
[EventCountry "MNE"]
[SourceTitle "playchess.com"]
[Source "ChessBase"]
[SourceQuality "1"]
[TimeControl "40/5400+30:1800+30"]

{[%evp 9,56,0,8,8,6,4,0,-22,-22,-26,-21,-25,-18,-21,-22,-41,-37,-37,-28,-36,-25,-25,-19,-33,-41,-30,-36,-70,-49,-49,-33,-145,-145,-125,-125,-150,-139,-152,-137,-121,-105,-177,-184,-192,-203,-283,-275,-1001,-985]} 1. e4 {[%emt 0:00:03]} c5 {[%emt 0:00:06]} 2. Nf3 {[%emt 0:00:09]} d6 {[%emt 0:00:14]} 3. Nc3 {[%emt 0:00:05]} Nf6 {[%emt 0:00:09]} 4. e5 {[%emt 0:00:07]} dxe5 {[%emt 0:00:12]} 5. Nxe5 {[%emt 0:00:06]} a6 {[%emt 0:00:08]} 6. g3 {[%emt 0:00:04] B50: Sicilian: 2...d6, Miscellaneous.} Qd6 {[%emt 0:00:07]} 7. Nf3 {[%emt 0:00:07]} b5 {[%emt 0:00:21] [#]} 8. a3 $146 {[%emt 0:02:41] The position is equal.} ({Predecessor:} 8. Bg2 Bb7 9. O-O e6 10. d3 Nbd7 11. Bf4 Qb6 12. Re1 Bd6 13. Be3 O-O 14. Nd2 Bxg2 15. Kxg2 {0-1 Mamedov,R (2656)-Bok,B (2616) Titled Tuesday intern op 07th Jun Late blitz 2022 (6)}) 8... Bb7 {[%emt 0:00:57] [#] Strongly threatening ...Qe6+.} 9. Bg2 {[%emt 0:00:29]} e6 {[%emt 0:02:32]} 10. d3 {[%emt 0:02:00]} Qb6 {[%emt 0:05:25]} 11. Qe2 {[%emt 0:07:00]} Be7 {[%emt 0:05:08][%cal Bf8e7,Be7f6,Bf6g5][%mdl 32]} 12. Bf4 {[%emt 0:18:44]} Nc6 {[%emt 0:04:28]} 13. Ne4 {[%emt 0:09:36]} O-O {[%emt 0:13:51]} 14. O-O {[%emt 0:03:20]} Nd4 {[%emt 0:02:04]} 15. Nxd4 {[%emt 0:22:32]} cxd4 {[%emt 0:00:05]} 16. Nxf6+ {[%emt 0:10:19]} Bxf6 {[%emt 0:00:18]} 17. Bxb7 {[%emt 0:00:16]} Qxb7 {[%emt 0:00:04]} 18. Qe4 {[%emt 0:00:05]} Qb6 {[%emt 0:05:40]} (18... Qxe4 {simplifies} 19. dxe4 Rfc8 20. Rac1 Rc4) 19. g4 {[%emt 0:01:34]} Qc5 {[%emt 0:03:28]} 20. g5 {[%emt 0:04:27]} Bxg5 $17 {[%emt 0:02:35]} 21. b4 {[%emt 0:00:19]} Qe7 {[%emt 0:00:39]} 22. Qxd4 {[%emt 0:01:23]} Rfd8 {[%emt 0:03:15] Against Bd6} 23. Qe4 {[%emt 0:01:38]} Bxf4 {[%emt 0:00:08]} 24. Qxf4 {[%emt 0:00:06]} Rac8 {[%emt 0:00:07]} 25. Qd2 {[%emt 0:02:36]} (25. Rfc1 $17 {might work better.}) 25... Qf6 $19 {[%emt 0:02:45]} 26. a4 {[%emt 0:01:06]} Qf3 {[%emt 0:07:29]} 27. Rfe1 {[%emt 0:04:28]} Rd4 {[%emt 0:01:28]} 28. Re4 $2 {[%emt 0:01:06] [#]} (28. axb5 axb5 29. Ra7) 28... Qxe4 {[%emt 0:00:54] Weighted Error Value: White=0.48/Black=0.04 (flawless)} 0-1

[Event "European Women-ch 2023"]
[Site "Petrovac"]
[Date "2023.03.18"]
[Round "1.20"]
[White "Humbatova, Nazli"]
[Black "Gajcin, Marina"]
[Result "0-1"]
[ECO "B33"]
[WhiteElo "1737"]
[BlackElo "2215"]
[Annotator "TA"]
[PlyCount "74"]
[EventDate "2023.03.15"]
[EventType "swiss"]
[EventCountry "MNE"]
[SourceTitle "playchess.com"]
[Source "ChessBase"]
[SourceQuality "1"]
[TimeControl "40/5400+30:1800+30"]

{[%evp 24,74,49,-8,17,-45,-44,-35,-22,-62,-32,-58,-52,-77,-66,-77,-41,-41,-13,-1,0,-32,-25,-41,-38,-60,-41,-75,-70,-177,-122,-183,-170,-186,-187,-243,-244,-319,-333,-1619,-1609,-1585,-1417,-940,-924,-1731,-1700,-1816,-1884,-1776,-1850,-1453,-1381]} 1. e4 {[%emt 0:00:01]} c5 {[%emt 0:00:06]} 2. Nf3 {[%emt 0:00:11][%cal Bg1f3,Bf3d4,Bd4b5][%mdl 32]} Nc6 {[%emt 0:00:10]} 3. d4 {[%emt 0:00:05]} cxd4 {[%emt 0:00:07]} 4. Nxd4 {[%emt 0:00:03]} Nf6 {[%emt 0:00:15]} 5. Nc3 {[%emt 0:00:08]} e5 {[%emt 0:00:10]} 6. Ndb5 {[%emt 0:00:10]} d6 {[%emt 0:00:09]} 7. Bg5 {[%emt 0:00:20]} a6 {[%emt 0:00:21]} 8. Bxf6 {[%emt 0:01:19]} gxf6 {[%emt 0:00:52]} 9. Na3 {[%emt 0:00:17]} b5 {[%emt 0:00:16]} 10. Nd5 {[%emt 0:01:43]} Bg7 {[%emt 0:01:00]} 11. c3 {[%emt 0:09:37]} f5 {[%emt 0:03:01]} 12. exf5 {[%emt 0:11:29]} Bxf5 {[%emt 0:01:22]} 13. Qf3 {[%emt 0:00:09]} (13. Nc2 $14) 13... Bd7 {[%emt 0:09:05] B33: Sicilian: Pelikan and Sveshnikov Variations.} (13... Be6 $5) 14. Qg3 {[%emt 0:00:54]} (14. Nc2 $11) 14... O-O $1 $15 {[%emt 0:01:45]} 15. Nc2 {[%emt 0:16:40] [#]} f5 $146 {[%emt 0:04:55] Black is slightly better.} ({Predecessor:} 15... Kh8 16. Qd3 e4 17. Qd2 Rb8 18. Be2 f5 19. g3 Be6 20. Nf4 Bf7 21. O-O Be5 {0-1 Djuric-Matic,R JUG-ch corr Yugoslavia 1979}) 16. O-O-O {[%emt 0:12:59]} Kh8 {[%emt 0:06:16]} (16... f4 17. Qf3 $11) 17. Qd3 {[%emt 0:06:38]} Ra7 {[%emt 0:22:18]} (17... Be6 {is interesting.} 18. g3 Nd4 19. Ndb4 e4) 18. Qd2 {[%emt 0:07:43]} Be6 {[%emt 0:02:43]} 19. Be2 {[%emt 0:02:51]} Rd7 {[%emt 0:01:45][%cal Oc6d4]} 20. Kb1 {[%emt 0:07:20]} Bxd5 {[%emt 0:10:10]} 21. Qxd5 {[%emt 0:00:02]} Ne7 {[%emt 0:00:22]} 22. Qb3 {[%emt 0:00:19]} d5 {[%emt 0:01:35]} 23. g3 {[%emt 0:03:22]} Nc6 {[%emt 0:07:52]} 24. a4 {[%emt 0:04:20]} Na5 {[%emt 0:05:31]} 25. Qa2 {[%emt 0:00:07]} Nc4 {[%emt 0:03:38]} 26. b3 {[%emt 0:00:11]} ({Better is} 26. Rhf1 $15) 26... Na5 {[%emt 0:01:52]} (26... Nd6 $19 27. f3 e4) 27. axb5 {[%emt 0:01:35]} (27. f4 $17) 27... axb5 $19 {[%emt 0:01:56]} 28. Bxb5 {[%emt 0:00:05]} Rb7 {[%emt 0:00:28][%cal Bd7b7,Bb7b5,Bb5b3][%mdl 32]} 29. c4 {[%emt 0:02:24]} (29. Na3 $142 Qa8 30. b4 (30. Rxd5 $2 Rxb5 31. Rxb5 Qxh1+ 32. Kb2 Nc6 $19)) 29... Qa8 {[%emt 0:01:00] Strongly threatening ...Rfb8.} 30. Rxd5 {[%emt 0:00:21] aiming for b4.} Rxb5 {[%emt 0:00:13][%mdl 64] [#] Pin} 31. Rhd1 {[%emt 0:02:25]} (31. b4 Rxd5 32. cxd5) 31... Rxb3+ {[%emt 0:05:52] Black is clearly winning.} 32. Kc1 {[%emt 0:00:20]} Bh6+ {[%emt 0:00:16]} (32... Nxc4 33. Qxb3 Rc8 34. Qd3 Bh6+ 35. f4 $16) 33. f4 {[%emt 0:02:39]} exf4 {[%emt 0:01:45]} ({Weaker is} 33... Nxc4 34. Qxb3 Rc8 35. Qd3 $16) 34. Qa1+ {[%emt 0:03:25]} Bg7 {[%emt 0:03:19][%cal Bh6g7,Bg7b2,Bb2c3][%mdl 32]} 35. Qxa5 {[%emt 0:01:12]} Bb2+ {[%emt 0:00:10]} 36. Kd2 {[%emt 0:00:56]} Qxa5+ {[%emt 0:00:06][%mdl 64] [#] Remove Defender} ({Stronger than} 36... fxg3 37. Qxa8 Rxa8 38. hxg3 $17) 37. Rxa5 {[%emt 0:00:16]} Bc3+ {[%emt 0:00:02] Weighted Error Value: White=0.83/Black=0.12 (very precise)} 0-1

[Event "European Women-ch 2023"]
[Site "Petrovac"]
[Date "2023.03.18"]
[Round "1.21"]
[White "Savina, Anastasia"]
[Black "Koljevic, Nikolina"]
[Result "1-0"]
[ECO "E51"]
[WhiteElo "2345"]
[BlackElo "2042"]
[Annotator "TA"]
[PlyCount "51"]
[EventDate "2023.03.15"]
[EventType "swiss"]
[EventCountry "MNE"]
[SourceTitle "playchess.com"]
[Source "ChessBase"]
[SourceQuality "1"]
[TimeControl "40/5400+30:1800+30"]

{[%evp 11,51,8,2,-4,0,0,19,11,25,19,7,18,13,9,22,0,209,206,325,251,249,262,372,329,488,474,492,485,863,858,2868,2766,2661,2331,29995,29996,29996,29997,29997,29998,29998,59]} 1. d4 {[%emt 0:00:13]} Nf6 {[%emt 0:00:16]} 2. c4 {[%emt 0:00:05]} e6 {[%emt 0:00:15]} 3. Nc3 {[%emt 0:00:16]} Bb4 {[%emt 0:00:25]} 4. e3 {[%emt 0:00:17]} d5 {[%emt 0:00:36]} 5. Bd2 {[%emt 0:03:34]} O-O {[%emt 0:01:21]} 6. Nf3 {[%emt 0:00:33]} Nbd7 {[%emt 0:02:21]} 7. Rc1 $1 {[%emt 0:07:17][%mdl 4] is more profitable than 7.Bd3 at the moment. E51: Nimzo-Indian: Rubinstein: 4...0-0 5 Nf3 d5.} c6 {[%emt 0:06:26]} 8. Bd3 {[%emt 0:05:40]} Qe7 {[%emt 0:04:46]} 9. O-O {[%emt 0:13:56] The position is equal.} dxc4 {[%emt 0:09:06]} 10. Bxc4 {[%emt 0:00:05]} e5 {[%emt 0:00:28]} 11. Qc2 {[%emt 0:09:37]} Bd6 {[%emt 0:24:42]} 12. h3 {[%emt 0:05:04] [#]} h6 $146 {[%emt 0:02:06]} ({Predecessor:} 12... a5 13. a3 Bc7 14. Ba2 g6 15. Rfe1 Kg7 16. e4 exd4 17. Nxd4 Ne5 18. f4 Bb6 19. Be3 Neg4 20. Nf5+ gxf5 21. Bxb6 Nh6 22. exf5 Qd7 23. g4 {1-0 Bluebaum,M (2642)-Sjugirov,S (2680) Titled Tuesday intern op 15th Feb Late blitz 2022 (8)}) 13. Bb3 {[%emt 0:09:52]} (13. Nh4 {looks sharper.} Nb6 14. Ng6 Qd8 15. Bb3) 13... e4 $2 {[%emt 0:09:04]} (13... Re8 $11) 14. Nh4 $18 {[%emt 0:03:54] Hoping for Nf5.} Re8 {[%emt 0:02:57]} (14... Bb8 $142 15. Nf5 {[%mdl 64] Deflection} Qd8) 15. Nf5 {[%emt 0:04:11]} Qf8 {[%emt 0:00:11] [#]} 16. f3 $1 {[%emt 0:05:16][%cal Rf3e4]} exf3 {[%emt 0:03:04]} (16... Bb4 {was worth a try.} 17. Nxe4 Be7) 17. Rxf3 {[%emt 0:00:33]} Bb8 {[%emt 0:07:10]} (17... a5 {was necessary.} 18. e4 a4) 18. e4 {[%emt 0:07:46][%cal Be3e4,Be4e5][%mdl 32]} c5 {[%emt 0:08:15]} 19. e5 {[%emt 0:03:24]} cxd4 {[%emt 0:04:55]} (19... c4 $142 20. exf6 cxb3 21. fxg7 bxc2 22. gxf8=Q+ Kxf8) 20. exf6 {[%emt 0:00:53]} ({Not} 20. Nxd4 Bxe5 21. Nf5 Kh8 $11) 20... dxc3 {[%emt 0:02:29]} 21. fxg7 {[%emt 0:04:06]} Qc5+ {[%emt 0:00:19]} 22. Be3 {[%emt 0:01:44]} Rxe3 {[%emt 0:01:31]} 23. Nxh6+ {[%emt 0:00:50] White mates.} Kxg7 {[%emt 0:01:01]} 24. Rxf7+ {[%emt 0:00:15]} Kxh6 {[%emt 0:01:21]} 25. Qh7+ {[%emt 0:00:08]} Kg5 {[%emt 0:00:38]} 26. h4+ $2 {[%emt 0:00:28] A superb game by Savina.   Weighted Error Value: White=0.08 (flawless) /Black=0.94} (26. Qg8+ {mates} Kh6 27. Rh7#) 1-0